fUSD/lending_fUSD_20250312
["ID","MTS","AMOUNT","RATE_DAILY","PERIOD"]
[356040928,1741819832822,-506.40989492,9.999e-05,2]
[356040929,1741819832831,-500.0,9.999e-05,2]
[356040930,1741819832840,-500.0,9.999e-05,2]
[356040931,1741819832849,-500.0,9.999e-05,2]
[356040932,1741819832859,-158.24589887,9.999e-05,2]
[356040938,1741819837986,-228.1361558,9.999e-05,2]
[356040939,1741819837995,-1464.0,0.0001,2]
[356040940,1741819838004,-302.32763441,0.0001,2]
[356040941,1741819838013,-3027.53620979,0.0001,2]
[356040942,1741819838024,-1180.32663173,0.0001,2]
[356040943,1741819838068,-2825.89686152,0.0001,2]
[356040944,1741819838080,-4131.04526966,0.0001,2]
[356040945,1741819838124,-330.86037403,0.0001,2]
[356040946,1741819838155,-32832.03933036,0.0001,2]
[356040947,1741819838254,-4196.24205,0.0001,2]
[356040949,1741819840069,-8487.67,0.0001,2]
[356040950,1741819840080,-14211.48663277,0.0001,2]
[356040951,1741819840091,-2515.40512397,0.0001,2]
[356040952,1741819840291,-224804.2685065,0.0001,2]
[356040953,1741819840301,-36055.34368149,0.0001,2]
[356040954,1741819840311,-949009.27047566,0.0001,2]
[356040955,1741819840339,-485.16727043,0.0001,2]
[356040965,1741819843114,-677.5623,9.9e-05,2]
[356040966,1741819843123,-409.18975022,0.0001,2]
[356040967,1741819843182,-811.1747498,0.0001,2]
[356040968,1741819843194,-17074.19249413,0.0001,2]
[356041003,1741819844080,-39108.11223555,0.0001,2]
[356041004,1741819844109,-38270.20425166,0.0001,2]
[356041006,1741819846058,-3105.93734782,0.0001,2]
[356041007,1741819846178,-9506.05135445,0.0001,2]
[356041008,1741819846189,-518.11771717,0.0001,2]
[356041009,1741819846205,-885831.54504461,0.0001,2]
[356041010,1741819846215,-8083.53136508,0.0001,2]
[356041011,1741819846225,-1081.32705954,0.0001,2]
[356041012,1741819846235,-200.0,0.0001,2]
[356041013,1741819846245,-14726.93,0.0001,2]
[356041014,1741819846254,-1672.40454,0.0001,2]
[356041015,1741819846264,-336.37760169,0.0001,2]
[356041016,1741819846273,-555.3086202,0.0001,2]
[356041017,1741819846282,-2271.8088014,0.00010005,2]
[356041018,1741819846291,-150.58,0.00010019,2]
[356041019,1741819846301,-550.0,0.00010048,2]
[356041020,1741819846310,-150.58,0.00010074,2]
[356041021,1741819846320,-200.0,0.000101,2]
[356041022,1741819846329,-150.58,0.00010129,2]
[356041023,1741819846339,-498.37,0.0001015,2]
[356041024,1741819846348,-150.58,0.00010184,2]
[356041025,1741819846358,-150.58,0.00010239,2]
[356041026,1741819846367,-250.0,0.00010259,2]
[356041027,1741819846377,-150.58,0.00010294,2]
[356041028,1741819846386,-150.58,0.00010349,2]
[356041029,1741819846395,-150.58,0.00010404,2]
[356041030,1741819846408,-1000.0,0.00010501,2]
[356041031,1741819846422,-297.02,0.000106,2]
[356041032,1741819846431,-9271.67726447,0.00010883,2]
[356041033,1741819846441,-150.0,0.00010889,2]
[356041034,1741819846452,-150.0,0.00010889,2]
[356041035,1741819846463,-200.0,0.00010959,2]
[356041036,1741819846472,-200.0,0.00010959,2]
[356041037,1741819846481,-200.0,0.00010959,2]
[356041038,1741819846492,-4000.0,0.00010959,2]
[356041039,1741819846502,-550.0,0.00010999,2]
[356041040,1741819846511,-2722.44656525,0.00011099,2]
[356041041,1741819846520,-1235.53,0.00011439,2]
[356041042,1741819846532,-555.30862015,0.00011452,2]
[356041043,1741819846543,-150.0,0.00011487,2]
[356041044,1741819846552,-2751.0,0.00011507,2]
[356041045,1741819846561,-250.0,0.00011515,2]
[356041046,1741819846571,-194.92,0.00011521,2]
[356041047,1741819846580,-150.0,0.00011571,7]
[356041048,1741819846590,-1000.0,0.00011668,2]
[356041049,1741819846599,-217.05,0.00011794,2]
[356041050,1741819846609,-217.05,0.00011825,2]
[356041051,1741819846619,-217.05,0.00011856,2]
[356041052,1741819846627,-217.05,0.00011887,2]
[356041053,1741819846636,-200.0,0.00011917,2]
[356041054,1741819846646,-217.05,0.00011918,2]
[356041055,1741819846655,-217.05,0.00011949,2]
[356041056,1741819846664,-217.05,0.0001198,2]
[356041057,1741819846673,-2722.44656524,0.00011984,2]
[356041058,1741819846682,-217.05,0.00012011,2]
[356041059,1741819846691,-217.05,0.00012043,2]
[356041060,1741819846701,-217.05,0.00012074,2]
[356041061,1741819846710,-16269.63,0.00012087,2]
[356041062,1741819846719,-1880.55,0.00012087,2]
[356041063,1741819846728,-884.58,0.00012087,2]
[356041064,1741819846738,-217.05,0.00012105,2]
[356041065,1741819846747,-200.34,0.00012126,2]
[356041066,1741819846756,-217.05,0.00012136,2]
[356041067,1741819846765,-217.05,0.00012167,2]
[356041068,1741819846775,-217.05,0.00012198,2]
[356041069,1741819846784,-217.05,0.00012229,2]
[356041070,1741819846793,-217.05,0.0001226,2]
[356041071,1741819846802,-217.05,0.00012291,2]
[356041072,1741819846811,-217.05,0.00012322,2]
[356041073,1741819846820,-217.05,0.00012353,2]
[356041074,1741819846829,-217.05,0.00012384,2]
[356041075,1741819846838,-498.37,0.00012413,2]
[356041076,1741819846847,-1000.0,0.00012835,2]
[356041077,1741819846856,-550.0,0.00013,2]
[356041078,1741819846866,-151.44,0.00013,2]
[356041079,1741819846875,-151.44,0.00013,2]
[356041080,1741819846884,-151.44,0.00013,2]
[356041081,1741819846893,-151.44,0.00013,2]
[356041082,1741819846903,-151.44,0.00013,2]
[356041083,1741819846912,-151.44,0.00013,2]
[356041084,1741819846921,-151.44,0.00013,2]
[356041085,1741819846931,-151.44,0.00013,2]
[356041086,1741819846940,-151.44,0.00013,2]
[356041087,1741819846949,-151.44,0.00013,2]
[356041088,1741819846959,-151.44,0.00013,2]
[356041089,1741819846969,-151.44,0.00013,2]
[356041090,1741819846980,-151.44,0.00013,2]
[356041091,1741819846989,-151.44,0.00013,2]
[356041092,1741819846999,-555.30862015,0.00013003,2]
[356041093,1741819847007,-666.3,0.00013648,2]
[356041094,1741819847017,-155.32,0.00013687,2]
[356041095,1741819847027,-500.0,0.00013698,2]
[356041096,1741819847037,-200.0,0.00013699,2]
[356041097,1741819847046,-500.0,0.00013699,2]
[356041098,1741819847056,-155.32,0.00013723,2]
[356041099,1741819847066,-155.32,0.00013759,2]
[356041100,1741819847075,-155.32,0.00013795,2]
[356041101,1741819847085,-155.32,0.00013831,2]
[356041102,1741819847095,-155.32,0.00013867,2]
[356041103,1741819847104,-155.32,0.00013903,2]
[356041104,1741819847115,-155.32,0.00013939,2]
[356041105,1741819847125,-155.32,0.00013975,2]
[356041106,1741819847134,-167.61,0.00013998,2]
[356041107,1741819847143,-1000.0,0.00014001,2]
[356041108,1741819847153,-155.32,0.00014011,2]
[356041109,1741819847162,-155.32,0.00014048,2]
[356041110,1741819847171,-2722.44656524,0.00014067,2]
[356041111,1741819847180,-151.42,0.00014068,2]
[356041112,1741819847190,-155.32,0.00014084,2]
[356041113,1741819847199,-155.32,0.0001412,2]
[356041114,1741819847209,-155.32,0.00014156,2]
[356041115,1741819847218,-151.42,0.00014156,2]
[356041116,1741819847228,-155.32,0.00014192,2]
[356041117,1741819847239,-155.32,0.00014228,2]
[356041118,1741819847248,-151.42,0.00014244,2]
[356041119,1741819847258,-155.32,0.00014264,2]
[356041120,1741819847267,-155.32,0.000143,2]
[356041121,1741819847276,-151.42,0.00014331,2]
[356041122,1741819847286,-155.32,0.00014336,2]
[356041123,1741819847295,-155.32,0.00014372,2]
[356041124,1741819847304,-194.92,0.00014402,2]
[356041125,1741819847314,-151.42,0.00014419,2]
[356041126,1741819847323,-151.42,0.00014507,2]
[356041127,1741819847333,-555.30862015,0.00014555,2]
[356041128,1741819847342,-151.42,0.00014595,2]
[356041129,1741819847352,-498.37,0.00014677,2]
[356041130,1741819847361,-151.42,0.00014683,2]
[356041131,1741819847372,-151.42,0.00014771,2]
[356041132,1741819847381,-600.0,0.00015,2]
[356041133,1741819847391,-1672.40454,0.00015,2]
[356041134,1741819847400,-300.0,0.00015068,2]
[356041135,1741819847409,-500.0,0.00015224,2]
[356041136,1741819847419,-1279.0,0.00015225,2]
[356041137,1741819847428,-2033.0,0.00015225,2]
[356041138,1741819847438,-150.0,0.00015225,2]
[356041139,1741819847449,-1418.0,0.00015225,2]
[356041140,1741819847463,-572.0,0.00015225,2]
[356041141,1741819847472,-641.26,0.00015225,2]
[356041142,1741819847481,-786.0,0.00015225,2]
[356041143,1741819847490,-907.0,0.00015225,2]
[356041144,1741819847501,-541.0,0.00015225,2]
[356041145,1741819847510,-1428.0,0.00015225,2]
[356041146,1741819847519,-1270.0,0.00015225,2]
[356041147,1741819847529,-4077.0,0.00015225,2]
[356041148,1741819847539,-1012.0,0.00015225,2]
[356041149,1741819847548,-3933.0,0.00015225,2]
[356041150,1741819847557,-298.0,0.00015225,2]
[356041151,1741819847567,-1114.0,0.00015225,2]
[356041152,1741819847577,-152.467,0.00015225,2]
[356041153,1741819847586,-189.04,0.00015225,2]
[356041154,1741819847596,-666.3,0.00015354,2]
[356041155,1741819847605,-255.0,0.00015404,5]
[356041156,1741819847615,-254.0,0.00015404,5]
[356041157,1741819847624,-500.0,0.00015498,2]
[356041158,1741819847633,-500.0,0.00015772,2]
[356041159,1741819847643,-1235.53,0.00016014,2]
[356041160,1741819847652,-500.0,0.00016046,2]
[356041161,1741819847661,-555.30862015,0.00016107,2]
[356041162,1741819847670,-620.05,0.00016116,5]
[356041163,1741819847680,-299.99,0.00016116,4]
[356041164,1741819847689,-2722.44656524,0.00016151,2]
[356041165,1741819847698,-167.61,0.00016308,2]
[356041166,1741819847707,-500.0,0.0001632,2]
[356041167,1741819847716,-300.0,0.00016438,2]
[356041168,1741819847726,-745.05,0.00016493,30]
[356041169,1741819847735,-500.0,0.00016594,2]
[356041170,1741819847745,-500.0,0.00016868,2]
[356041171,1741819847754,-498.37,0.00016941,2]
[356041172,1741819847764,-650.0,0.00017,2]
[356041173,1741819847773,-666.3,0.0001706,2]
[356041174,1741819847782,-271.135,0.00017095,2]
[356041175,1741819847791,-281.308,0.00017095,2]
[356041176,1741819847801,-250.0,0.00017095,2]
[356041177,1741819847811,-245.67,0.00017095,2]
[356041178,1741819847820,-500.0,0.00017095,2]
[356041179,1741819847830,-500.0,0.00017095,2]
[356041180,1741819847839,-500.0,0.00017095,2]
[356041181,1741819847849,-500.0,0.00017095,2]
[356041182,1741819847858,-500.0,0.00017095,2]
[356041183,1741819847867,-500.0,0.00017095,2]
[356041184,1741819847876,-500.0,0.00017095,2]
[356041185,1741819847886,-500.0,0.00017095,2]
[356041186,1741819847895,-500.0,0.00017095,2]
[356041187,1741819847904,-500.0,0.00017095,2]
[356041188,1741819847914,-500.0,0.00017095,2]
[356041189,1741819847924,-500.0,0.00017095,2]
[356041190,1741819847933,-500.0,0.00017095,2]
[356041191,1741819847942,-500.0,0.00017095,2]
[356041192,1741819847951,-500.0,0.00017095,2]
[356041193,1741819847961,-500.0,0.00017095,2]
[356041194,1741819847975,-932.67257796,0.00017095,2]
[356041195,1741819847985,-500.0,0.00017142,2]
[356041196,1741819847994,-194.92,0.00017282,2]
[356041197,1741819848004,-500.0,0.00017416,2]
[356041198,1741819848013,-555.30862015,0.00017659,2]
[356041199,1741819848152,-500.0,0.0001769,2]
[356041200,1741819848170,-457.83,0.00017964,2]
[356041201,1741819848179,-200.0,0.00018082,2]
[356041202,1741819848188,-151.44,0.00018215,2]
[356041203,1741819848197,-1279.0,0.00018225,2]
[356041204,1741819848207,-2033.0,0.00018225,2]
[356041205,1741819848216,-150.0,0.00018225,2]
[356041206,1741819848225,-1418.0,0.00018225,2]
[356041207,1741819848233,-571.0,0.00018225,2]
[356041208,1741819848242,-641.0,0.00018225,2]
[356041209,1741819848251,-786.0,0.00018225,2]
[356041210,1741819848260,-907.0,0.00018225,2]
[356041211,1741819848269,-541.0,0.00018225,2]
[356041212,1741819848279,-1428.0,0.00018225,2]
[356041213,1741819848288,-1270.0,0.00018225,2]
[356041214,1741819848297,-4077.0,0.00018225,2]
[356041215,1741819848307,-3933.0,0.00018225,2]
[356041216,1741819848318,-151.0,0.00018225,2]
[356041217,1741819848327,-1114.0,0.00018225,2]
[356041218,1741819848337,-150.0,0.00018225,2]
[356041219,1741819848346,-150.0,0.00018225,2]
[356041220,1741819848355,-2722.44656524,0.00018235,2]
[356041221,1741819848365,-153.78,0.000186,2]
[356041222,1741819848374,-666.3,0.00018767,2]
[356041223,1741819848384,-1000.0,0.00018897,2]
[356041224,1741819848393,-498.37,0.00019205,2]
[356041225,1741819848402,-555.30862015,0.0001921,2]
[356041226,1741819848412,-500.0,0.00019973,2]
[356041227,1741819848421,-500.0,0.00019973,2]
[356041228,1741819848431,-151.44,0.0001999,2]
[356041229,1741819848440,-4360.98799038,0.0002,2]
[356041230,1741819848451,-6011.22752649,0.0002,2]
[356041231,1741819848502,-3820.59999994,0.0002,2]
[356041232,1741819848514,-918.0,0.0002,2]
[356041233,1741820288894,-150.58,9.7e-05,2]
[356041235,1741820601368,-849.42,9.7e-05,2]
[356041236,1741820601393,-635.2728,9.9e-05,2]
[356041237,1741820601417,-150.0,9.936e-05,2]
[356041238,1741820601442,-1162.05,9.999e-05,14]
[356041241,1741821032218,-166.66666668,0.00010447,2]
[356041242,1741821032228,-150.0,0.0001089,2]
[356041243,1741821032238,-151.63333331,0.00011543,2]
[356041244,1741821032346,-15.03333335,0.00011543,2]
[356041245,1741821032355,-425.73660883,0.000119,2]
[356041246,1741821032364,-166.66666666,0.00012639,2]
[356041247,1741821032374,-550.0,0.00013,2]
[356041248,1741821032383,-425.73660878,0.00013383,2]
[356041249,1741821032393,-250.0,0.00013804,2]
[356041250,1741821032402,-14532.21,0.00014814,2]
[356041251,1741821032411,-150.0,0.00014814,2]
[356041252,1741821032420,-425.73660878,0.00014866,2]
[356041253,1741821032430,-6166.31,0.00014966,2]
[356041254,1741821032440,-182.73,0.00015038,2]
[356041255,1741821032449,-2751.0,0.00015049,2]
[356041256,1741821032458,-150.0,0.00015175,2]
[356041257,1741821032468,-4987.42,0.0001531,2]
[356041258,1741821032477,-13591.2,0.0001531,2]
[356041259,1741821032486,-6773.1,0.0001531,2]
[356041260,1741821032503,-1346.9318,0.00016125,2]
[356041261,1741821032513,-151.0,0.00016219,2]
[356041262,1741821032523,-3933.0,0.00016219,2]
[356041263,1741821032532,-214.228,0.00016225,2]
[356041264,1741821032542,-150.0,0.00016225,2]
[356041265,1741821032551,-2033.0,0.00016225,2]
[356041266,1741821032561,-1279.0,0.00016225,2]
[356041267,1741821032570,-1418.0,0.00016225,2]
[356041268,1741821032580,-150.0,0.00016225,2]
[356041269,1741821032589,-641.0,0.00016225,2]
[356041270,1741821032599,-650.593,0.00016225,2]
[356041271,1741821032608,-786.0,0.00016225,2]
[356041272,1741821032618,-1428.0,0.00016225,2]
[356041273,1741821032628,-907.0,0.00016225,2]
[356041274,1741821032637,-1270.0,0.00016225,2]
[356041275,1741821032647,-541.0,0.00016225,2]
[356041276,1741821032656,-4077.0,0.00016225,2]
[356041277,1741821032666,-373.77,0.0001629,2]
[356041278,1741821032676,-425.73660878,0.00016348,2]
[356041279,1741821032685,-300.0,0.00016364,2]
[356041280,1741821032695,-682.96,0.00016493,30]
[356041281,1741821032705,-749.59,0.0001685,2]
[356041282,1741821032714,-182.73,0.00016918,2]
[356041283,1741821032724,-300.0,0.00017734,2]
[356041284,1741821032734,-425.73660878,0.00017831,2]
[356041285,1741821032743,-200.0,0.00018412,2]
[356041286,1741821032754,-373.77,0.00018553,2]
[356041287,1741821032765,-4000.0,0.00018658,2]
[356041288,1741821032775,-182.73,0.00018797,2]
[356041289,1741821032785,-223.1545,0.00019125,2]
[356041290,1741821032796,-3398.578,0.00019125,2]
[356041291,1741821032805,-600.6547,0.00019125,2]
[356041292,1741821032816,-150.0,0.00019219,2]
[356041293,1741821032827,-3933.0,0.00019219,2]
[356041294,1741821032836,-2033.0,0.00019225,2]
[356041295,1741821032846,-1279.0,0.00019225,2]
[356041296,1741821032856,-1418.0,0.00019225,2]
[356041298,1741821032865,-150.0,0.00019225,2]
[356041300,1741821032874,-641.0,0.00019225,2]
[356041302,1741821032884,-571.0,0.00019225,2]
[356041303,1741821032893,-2832.197,0.00019225,2]
[356041304,1741821032904,-425.73660878,0.00019314,2]
[356041305,1741821032914,-1000.0,0.00019834,2]
[356041306,1741821032923,-200.0,0.0001984,2]
[356041307,1741821032933,-150.58,0.000199,2]
[356041308,1741821032943,-256.16566721,0.000199,2]
[356041309,1741821032955,-1105.05761541,0.000199,2]
[356041310,1741821032965,-503.81002786,0.00019973,2]
[356041311,1741821032975,-468.38031311,0.00019998,2]
[356041312,1741821033373,-2001.49158689,0.00019998,2]
[356041313,1741821033382,-36398.82339764,0.0002,2]
[356041330,1741821038059,-1114.0,0.00016219,2]
[356041333,1741821038069,-127.53480438,0.00019219,2]
[356041336,1741821038080,-398.31919562,0.00019219,2]
[356041338,1741821038090,-47223.60461058,0.0002,2]
[356041339,1741821038100,-1000.0,0.0002,3]
[356041341,1741821038109,-1000.0,0.0002,3]
[356041342,1741821038118,-1000.0,0.0002,3]
[356041343,1741821038127,-1003.0,0.0002,3]
[356041344,1741821038137,-4600.61080137,0.0002,14]
[356041345,1741821038165,-15700.92437232,0.0002,14]
[356041346,1741821038209,-1799.94722555,0.0002,14]
[356041347,1741821038220,-19898.51760076,0.0002,14]
[356041348,1741821038229,-200.00654926,0.0002,5]
[356041349,1741821038239,-1114.93636,0.0002,23]
[356041350,1741821038247,-447.1720264,0.00020056,2]
[356041351,1741821038256,-4317.0512152,0.0002007,2]
[356041352,1741821038266,-1482.6972853,0.0002007,2]
[356041353,1741821038275,-1689.61896308,0.00020084,2]
[356041354,1741821038311,-40.88998392,0.00020084,2]
[356041355,1741821038320,-500.0,0.00020098,2]
[356041356,1741821038329,-801.36,0.00020159,2]
[356041357,1741821038339,-1615.0,0.000205,2]
[356041358,1741821038348,-1000.0,0.00020665,2]
[356041359,1741821038357,-182.73,0.00020677,2]
[356041360,1741821038366,-425.73660878,0.00020797,2]
[356041361,1741821038375,-373.77,0.00020817,2]
[356041362,1741821038385,-1361.22328262,0.00020871,2]
[356041363,1741821038394,-682.96,0.00020971,30]
[356041364,1741821038403,-223.52,0.00021177,2]
[356041365,1741821038413,-1113.63,0.00021224,14]
[356041366,1741821038422,-150.0,0.00021225,2]
[356041367,1741821038432,-200.0,0.00021375,2]
[356041368,1741821038441,-1113.63,0.00021498,14]
[356041369,1741821038450,-1113.63,0.00021772,14]
[356041370,1741821038459,-1361.22328262,0.00021842,2]
[356041371,1741821038468,-1113.63,0.00022046,14]
[356041372,1741821038478,-3114.394,0.00022219,2]
[356041373,1741821038487,-2033.0,0.00022225,2]
[356041374,1741821038497,-1274.0,0.00022225,2]
[356041375,1741821038506,-1418.0,0.00022225,2]
[356041376,1741821038515,-641.0,0.00022225,2]
[356041377,1741821038525,-571.0,0.00022225,2]
[356041378,1741821038534,-425.73660878,0.00022279,3]
[356041379,1741821038543,-1113.63,0.0002232,14]
[356041380,1741821038553,-182.73,0.00022557,2]
[356041381,1741821038562,-1113.63,0.00022594,14]
[356041382,1741821038572,-1361.22328262,0.00022814,2]
[356041383,1741821038581,-283.68965066,0.00022868,14]
[356041384,1741821038593,-382.27148904,0.00022868,14]
[356041385,1741821038621,-447.6688603,0.00022868,14]
[356041386,1741821038631,-373.77,0.00023081,2]
[356041387,1741821038640,-662.42025261,0.00023142,14]
[356041388,1741821038651,-451.20974739,0.00023142,14]
[356041389,1741821038661,-116.87101421,0.00023248,2]
[356041391,1741821040696,-883.12898579,0.00023248,2]
[356041392,1741821040706,-1113.63,0.00023416,14]
[356041393,1741821040715,-177.073,0.00023567,4]
[356041394,1741821040724,-1849.692,0.00023567,4]
[356041395,1741821040734,-1000.0,0.00023648,2]
[356041396,1741821040743,-1113.63,0.0002369,14]
[356041397,1741821040752,-425.73660878,0.00023762,3]
[356041398,1741821040762,-1361.22328262,0.00023785,2]
[356041399,1741821040771,-515.2,0.00023836,2]
[356041400,1741821040780,-1113.63,0.00023964,14]
[356041401,1741821040789,-1113.63,0.00024238,14]
[356041402,1741821040799,-1113.63,0.00024512,14]
[356041403,1741821040808,-1000.0,0.00024658,2]
[356041404,1741821040821,-1361.22328262,0.00024756,2]
[356041405,1741821040831,-1113.63,0.00024786,14]
[356041406,1741821040840,-500.0,0.0002479,2]
[356041407,1741821040849,-871.012,0.0002479,2]
[356041408,1741821040859,-32186.6880049,0.0002487,3]
[356041409,1741821040868,-1646.0,0.00025,2]
[356041410,1741821040879,-1114.93636,0.00025,23]
[356041411,1741821040888,-1113.63,0.0002506,14]
[356041412,1741821040899,-768.381,0.00025225,2]
[356041413,1741821040909,-425.73660878,0.00025245,4]
[356041414,1741821040918,-280.0,0.000253,10]
[356041415,1741821040928,-1113.63,0.00025334,14]
[356041416,1741821040938,-373.77,0.00025345,2]
[356041417,1741821040948,-682.96,0.0002545,30]
[356041418,1741821040957,-1113.63,0.00025608,14]
[356041419,1741821040966,-1361.22328262,0.00025727,2]
[356041420,1741821040976,-1000.0,0.00025831,2]
[356041421,1741821040985,-1113.63,0.00025882,14]
[356041422,1741821040996,-1113.63,0.00026156,14]
[356041423,1741821041006,-1113.63,0.0002643,14]
[356041424,1741821041015,-1361.22328262,0.00026699,2]
[356041425,1741821041024,-1113.63,0.00026704,14]
[356041426,1741821041033,-425.73660878,0.00026728,4]
[356041427,1741821041043,-506.63,0.00026849,2]
[356041428,1741821041052,-929.16,0.00026849,2]
[356041429,1741821041061,-667.58420894,0.00026978,14]
[356041430,1741821041073,-446.04579106,0.00026978,14]
[356041431,1741821041083,-1113.63,0.00027252,14]
[356041432,1741821041092,-2404.49862429,0.00027279,2]
[356041433,1741821041102,-32186.6880049,0.0002742,3]
[356041434,1741821041111,-2404.49862427,0.0002743,2]
[356041435,1741821041120,-1113.81681637,0.00027526,14]
[356041436,1741821041130,-2404.49862427,0.00027582,2]
[356041437,1741821041140,-200.0,0.000276,10]
[356041438,1741821041307,-373.77,0.00027609,2]
[356041439,1741821041317,-1361.22328262,0.0002767,2]
[356041440,1741821041327,-500.0,0.000277,10]
[356041441,1741821041337,-2404.49862427,0.00027733,2]
[356041442,1741821041346,-3252.10882892,0.000278,2]
[356041443,1741821041356,-700.0,0.000278,10]
[356041444,1741821041365,-391.0,0.0002783,15]
[356041445,1741821041374,-2404.49862427,0.00027884,2]
[356041446,1741821041384,-32186.6880049,0.0002789,3]
[356041447,1741821041393,-70123.5287,0.000279,3]
[356041448,1741821041403,-1000.0,0.000279,10]
[356041449,1741821041412,-151.44,0.0002796,2]
[356041450,1741821041423,-151.44,0.0002796,2]
[356041451,1741821041433,-151.44,0.0002796,2]
[356041452,1741821041442,-151.44,0.0002796,2]
[356041453,1741821041452,-151.44,0.0002796,2]
[356041454,1741821041462,-15671.25523357,0.0002797,5]
[356041455,1741821041473,-53077.16476643,0.0002797,5]
[356041456,1741821041483,-26558.41601671,0.0002797,3]
[356041457,1741821041495,-356382.55629431,0.0002797,3]
[356041461,1741821043349,-1855.88181167,0.0002797,3]
[356041462,1741821043360,-1737.55535212,0.0002797,3]
[356041465,1741821046332,-1405.00000001,0.0002797,5]
[356041475,1741822008290,-500.0,9.999e-05,2]
[356041476,1741822008318,-500.0,9.999e-05,2]
[356041477,1741822008344,-500.0,9.999e-05,2]
[356041478,1741822008371,-500.0,9.999e-05,2]
[356041479,1741822008398,-466.43707745,9.999e-05,2]
[356041480,1741822054534,1533.56292255,9.99e-05,2]
[356041486,1741822162560,-300.0,9.989e-05,2]
[356041487,1741822162584,-9700.0,9.99e-05,2]
[356041488,1741822166018,-10000.0,9.99e-05,2]
[356041489,1741822166223,-10000.0,9.99e-05,2]
[356041490,1741822166652,-10000.0,9.99e-05,2]
[356041491,1741822167361,-7978.2790142,9.99e-05,2]
[356041492,1741822167386,-432.14424236,9.999e-05,2]
[356041493,1741822167411,-1589.57674344,0.0001,2]
[356041494,1741822167865,-10000.0,0.0001,2]
[356041495,1741822168072,-10000.0,0.0001,2]
[356041496,1741822168269,-10000.0,0.0001,2]
[356041497,1741822168775,-10000.0,0.0001,2]
[356041498,1741822168958,-10000.0,0.0001,2]
[356041499,1741822169331,-10000.0,0.0001,2]
[356041500,1741822169664,-10000.0,0.0001,2]
[356041501,1741822170145,-10000.0,0.0001,2]
[356041502,1741822170508,-10000.0,0.0001,2]
[356041503,1741822170933,-10000.0,0.0001,2]
[356041504,1741822171295,-10000.0,0.0001,2]
[356041505,1741822171579,-10000.0,0.0001,2]
[356041506,1741822172047,-10000.0,0.0001,2]
[356041507,1741822172361,-10000.0,0.0001,2]
[356041508,1741822172710,-10000.0,0.0001,2]
[356041509,1741822173330,-10000.0,0.0001,2]
[356041510,1741822173619,-10000.0,0.0001,2]
[356041511,1741822173985,-10000.0,0.0001,2]
[356041512,1741822174459,-10000.0,0.0001,2]
[356041513,1741822174977,-10000.0,0.0001,2]
[356041514,1741822175628,-10000.0,0.0001,2]
[356041515,1741822176023,-10000.0,0.0001,2]
[356041516,1741822176262,-10000.0,0.0001,2]
[356041517,1741822176586,-10000.0,0.0001,2]
[356041518,1741822177022,-10000.0,0.0001,2]
[356041519,1741822177454,-10000.0,0.0001,2]
[356041520,1741822177825,-10000.0,0.0001,2]
[356041521,1741822178202,-10000.0,0.0001,2]
[356041522,1741822178703,-10000.0,0.0001,2]
[356041523,1741822179010,-10000.0,0.0001,2]
[356041524,1741822179506,-10000.0,0.0001,2]
[356041525,1741822179871,-10000.0,0.0001,2]